bitfinex/quotes_ETHUSD_20250622
["timestamp","ask_amount","ask_price","bid_price","bid_amount"]
[1750629945157,0.2955,2214.2,2212.5,0.058]
[1750629945342,0.2955,2214.2,2212.8,0.058]
[1750629946281,0.2955,2214.2,2213.0,0.058]
[1750629946447,0.2955,2215.4,2213.4,10.0]
[1750629946644,0.2955,2215.4,2214.6,10.058]
[1750629946849,0.2955,2215.4,2214.7,0.04513527]
[1750629947075,0.2955,2215.4,2214.2,0.058]
[1750629947457,0.2955,2215.4,2214.3,10.0]
[1750629947683,0.2955,2215.4,2214.2,0.058]
[1750629949146,0.0566,2215.3,2213.8,0.058]
[1750629949350,0.2955,2215.4,2213.8,0.10314673]
[1750629949546,0.2955,2215.4,2214.0,0.058]
[1750629949750,0.2955,2215.4,2214.1,0.0451464]
[1750629949988,0.2955,2216.1,2214.2,0.058]
[1750629950157,0.2955,2216.1,2214.8,0.058]
[1750629951071,0.2955,2216.1,2214.0,0.608]
[1750629951072,0.0566,2216.0,2214.0,0.608]
[1750629951280,0.0566,2216.0,2214.1,0.29299051]
[1750629951475,0.6066,2216.0,2214.2,0.23499051]
[1750629951674,0.6066,2216.0,2214.3,0.23499051]
[1750629951887,0.6066,2216.0,2214.4,0.23499051]
[1750629952088,0.0566,2215.8,2214.5,0.23499051]
[1750629952262,0.55,2215.7,2214.6,0.28013558]
[1750629952488,10.865,2216.3,2214.7,0.62734484]
[1750629952716,10.27729025,2216.3,2214.3,0.04514925]
[1750629952911,10.27729025,2216.3,2214.4,0.62790466]
[1750629953114,10.27729025,2216.3,2214.6,0.058]
[1750629953272,10.27729025,2216.3,2216.2,1.65769017]
[1750629953595,9.5147164,2216.3,2216.2,3.63129737]
[1750629953917,9.5147164,2216.3,2216.2,3.64404701]
[1750629954079,9.5147164,2216.3,2216.2,1.05379422]
[1750629954413,9.5713164,2216.3,2216.2,1.05379422]
[1750629954589,9.5713164,2216.3,2216.2,3.65164375]
[1750629954784,9.5713164,2216.3,2216.2,2.35304536]
[1750629955175,0.55,2216.2,2215.9,1.73201004]
[1750629955375,0.6066,2216.1,2216.0,1.73201004]
[1750629955576,0.0566,2216.1,2215.9,1.73201004]
[1750629955771,0.0566,2216.0,2215.8,1.73201004]
[1750629956012,0.0566,2216.0,2214.9,10.0]
[1750629956013,0.55,2216.2,2215.7,1.73201004]
[1750629956377,0.0566,2216.1,2215.9,1.73201004]
[1750629956715,7.67917222,2216.2,2215.7,1.73201004]
[1750629956885,7.67917222,2216.2,2215.0,3.99199785]
[1750629956886,7.67917222,2216.2,2215.3,2.59777327]
[1750629957579,5.62227422,2216.2,2215.3,2.59777327]
[1750629957878,9.5147164,2216.3,2215.3,2.59777327]
[1750629958588,8.00783689,2216.3,2215.3,2.59277327]
[1750629958791,0.0119,2216.2,2214.9,3.18635846]
[1750629959181,0.0119,2216.0,2214.8,3.18635846]
[1750629959579,10.01078319,2214.9,2214.2,5.59596141]
[1750629959782,10.01078319,2214.3,2213.5,4.35477807]
[1750629960024,10.01078319,2214.3,2212.6,0.058]
[1750629960205,10.01078319,2214.3,2212.1,5.59596141]
[1750629960206,1.358496,2214.6,2212.8,0.058]
[1750629960531,9.82309969,2214.8,2213.5,0.058]
[1750629960737,10.01078319,2214.1,2212.8,5.59596141]
[1750629961029,10.01078319,2214.4,2212.5,0.058]
[1750629961239,10.81048319,2215.8,2213.5,0.058]
[1750629961381,10.853,2215.9,2214.3,0.058]
[1750629961583,10.853,2215.9,2214.4,0.04514526]
[1750629961584,10.01078319,2215.7,2214.4,0.04514526]
[1750629961937,10.01078319,2215.3,2213.6,0.058]
[1750629962502,10.853,2215.9,2213.6,0.058]
[1750629962503,20.1288263,2215.9,2213.6,0.058]
[1750629962707,10.01078319,2215.5,2213.6,0.058]
[1750629963015,10.11804311,2215.9,2214.1,0.058]
[1750629963215,20.14804311,2215.9,2214.2,0.04514309]
[1750629963380,20.14804311,2215.9,2214.1,0.058]
[1750629963585,20.14804311,2215.9,2214.2,0.04514349]
[1750629963820,20.14804311,2215.9,2214.3,0.058]
[1750629963996,20.14804311,2215.9,2214.4,0.04514327]
[1750629964197,20.14804311,2215.9,2214.5,0.058]
[1750629964709,18.09101152,2215.9,2213.9,0.058]
[1750629965223,18.09101152,2215.9,2214.0,20.05593235]
[1750629965422,8.06101152,2215.9,2214.2,0.058]
[1750629965623,18.06501152,2215.9,2214.6,0.058]
[1750629965927,18.06501152,2215.9,2214.6,0.103144]
[1750629966113,18.06501152,2215.9,2214.6,0.058]
[1750629966283,18.06501152,2215.9,2214.6,0.10314037]
[1750629966484,0.55,2215.4,2213.9,0.058]
[1750629966808,10.01078319,2215.5,2213.9,0.058]
[1750629967012,0.55,2215.8,2214.0,4.51671183]
[1750629967322,0.55,2215.8,2214.1,1.06298809]
[1750629967534,0.55,2215.8,2214.2,1.06304335]
[1750629967535,7.95337704,2215.8,2214.2,1.06304335]
[1750629967743,7.95337704,2215.8,2214.3,1.06304335]
[1750629967927,7.95337704,2215.8,2213.5,10.0]
[1750629967928,10.01078319,2215.4,2214.4,1.06344655]
[1750629968112,10.01078319,2215.4,2214.5,1.06369857]
[1750629968317,10.01078319,2215.4,2213.4,0.10316135]
[1750629968505,8.98190414,2215.4,2213.5,5.58194093]
[1750629968836,10.0,2215.6,2213.7,0.058]
[1750629969037,10.0,2215.6,2213.8,1.06432717]
[1750629969260,10.0,2215.6,2213.9,1.06429116]
[1750629969554,0.55,2215.5,2214.0,1.06432325]
[1750629969705,0.55,2215.2,2214.1,1.06432227]
[1750629969920,0.55,2215.2,2213.3,0.058]
[1750629969921,0.55,2215.2,2214.2,1.06432227]
[1750629970264,0.55,2215.2,2214.3,1.06574486]
[1750629970462,0.55,2215.2,2213.3,0.058]
[1750629970463,0.55,2215.2,2214.4,1.06574486]
[1750629970669,10.01078319,2215.0,2212.9,0.058]
[1750629970873,10.01078319,2214.6,2212.9,0.058]
[1750629971184,9.925,2214.5,2212.6,0.8142]
[1750629971322,9.925,2214.5,2212.8,0.04518355]
[1750629971526,9.925,2214.5,2212.7,1.358477]
[1750629971738,10.01078319,2214.5,2212.7,1.40365708]
[1750629971933,9.919,2214.4,2212.7,1.358477]
[1750629972258,9.919,2214.4,2212.8,0.04518249]
[1750629972462,9.919,2214.4,2212.7,1.358477]
[1750629972761,9.919,2214.4,2212.9,0.9]
[1750629972980,9.919,2214.4,2213.0,0.04518064]
[1750629973184,10.01078319,2214.1,2212.7,1.358477]
[1750629973335,0.55,2214.0,2212.4,0.058]
[1750629973536,10.55,2214.3,2212.4,0.058]
[1750629973731,0.55,2213.9,2212.4,1.358658]
[1750629973980,10.854,2213.8,2212.1,0.8008]
[1750629974181,0.55,2213.7,2212.1,0.8008]
[1750629974347,0.55,2213.7,2212.2,0.04520146]
[1750629974871,0.55,2213.5,2212.1,2.159458]
[1750629975076,9.891,2213.4,2212.1,2.159458]
[1750629975374,9.879,2213.6,2212.2,0.04520347]
[1750629975670,9.879,2213.6,2212.1,1.358939]
[1750629976378,0.4410787,2213.7,2209.3,2.24869778]
[1750629976379,10.07133749,2212.2,2209.3,2.24869778]
[1750629976563,10.07628547,2210.6,2209.7,1.360088]
[1750629976764,10.07628547,2211.6,2209.8,0.8605]
[1750629977073,15.645,2212.1,2209.8,0.8605]
[1750629977074,1.360088,2211.1,2209.9,0.10496068]
[1750629977273,10.857,2211.5,2209.9,0.92692546]
[1750629977779,10.0,2209.9,2208.2,0.7715]
[1750629977938,10.07628547,2209.6,2208.3,0.37802047]
[1750629978137,10.07628547,2209.2,2208.3,0.37802047]
[1750629978566,10.07628547,2208.8,2208.3,0.37802047]
[1750629978743,10.857,2208.7,2208.3,0.37802047]
[1750629978942,5.98983889,2211.5,2208.5,0.7698]
[1750629979173,5.98983889,2211.5,2208.8,0.0597]
[1750629979174,20.94028547,2211.4,2208.8,0.0597]
[1750629979360,20.94028547,2211.4,2209.2,10.0597]
[1750629979361,9.983,2211.3,2209.2,10.0597]
[1750629979553,10.07628547,2210.8,2209.3,0.37784936]
[1750629979752,10.07628547,2210.8,2209.4,0.04525662]
[1750629979949,0.55,2210.7,2209.5,0.37781516]
[1750629980136,0.55,2210.6,2208.9,0.7698]
[1750629980337,10.07628547,2210.7,2208.9,0.7698]
[1750629980670,0.55,2210.6,2208.9,0.7698]
[1750629980979,0.55,2210.6,2209.0,0.0452654]
[1750629981272,10.07628547,2209.4,2208.7,0.04659018]
[1750629981472,10.0,2210.8,2208.7,0.04659018]
[1750629981658,10.8184,2211.3,2209.0,0.0597]
[1750629981659,9.973,2210.7,2209.0,0.0597]
[1750629981967,9.973,2210.7,2209.0,0.88166478]
[1750629982168,0.55,2210.5,2209.0,0.0597]
[1750629982338,0.55,2210.5,2208.7,0.04659018]
[1750629982339,0.55,2209.6,2208.7,0.04659018]
[1750629982541,10.07628547,2209.3,2208.7,0.04659018]
[1750629982761,10.869,2209.2,2208.7,0.04659018]
[1750629983140,10.07628547,2209.1,2208.7,0.04659018]
[1750629983567,10.869,2209.2,2208.7,0.04659018]
[1750629984174,0.55,2209.1,2208.7,0.04659018]
[1750629984476,9.95,2209.0,2208.2,1.5032]
[1750629984646,9.95,2209.0,2208.3,0.04527784]
[1750629984974,9.95,2209.0,2208.2,1.88123759]
[1750629985172,10.869,2209.2,2208.3,0.04527784]
[1750629985479,10.869,2209.2,2208.4,0.0597]
[1750629986273,10.869,2209.2,2208.2,1.88123759]
[1750629986475,0.55,2209.0,2208.2,0.37803759]
[1750629986660,11.45958547,2209.1,2208.2,0.37803759]
[1750629986661,9.924,2208.9,2208.2,0.37803759]
[1750629987489,0.55,2208.8,2208.2,0.37803759]
[1750629987688,0.55,2208.8,2207.5,1.5238]
[1750629987883,1.3833,2209.1,2207.5,1.5238]
[1750629988179,10.463,2209.0,2207.5,1.5238]
[1750629988379,9.913,2209.0,2207.5,1.5238]
[1750629988567,11.2883,2209.1,2207.6,0.0597]
[1750629988970,0.37870354,2209.0,2207.6,0.0597]
[1750629989171,21.14870354,2209.0,2207.6,0.10499046]
[1750629989364,21.14870354,2209.0,2207.6,0.0597]
[1750629990802,11.25470354,2209.0,2207.9,11.46968547]
[1750629990955,11.25470354,2209.0,2208.2,10.0]
[1750629991269,11.25470354,2209.0,2208.6,0.0597]
[1750629991605,11.25470354,2209.0,2208.5,1.3934]
[1750629991606,0.37870354,2209.0,2208.5,1.3934]
[1750629991768,9.866,2208.9,2208.0,1.3934]
[1750629991963,20.751,2208.8,2208.0,1.3934]
[1750629992657,20.751,2208.8,2207.5,1.4406]
[1750629992977,21.20451268,2208.8,2207.5,1.4406]
[1750629993178,9.871,2208.7,2207.6,0.0452958]
[1750629993390,9.871,2208.7,2207.5,1.4406]
[1750629993689,10.0,2209.7,2207.2,10.07628547]
[1750629993690,1.5175,2210.5,2208.5,10.07628547]
[1750629993989,1.5175,2210.5,2208.2,10.0]
[1750629993990,10.878,2210.5,2209.0,1.4979]
[1750629994198,9.851,2210.4,2209.0,1.4979]
[1750629994360,10.878,2210.5,2209.1,4.57192209]
[1750629994686,9.855,2210.4,2209.1,0.04525933]
[1750629994874,9.855,2210.4,2209.0,1.4979]
[1750629995476,9.855,2210.4,2209.1,0.04525698]
[1750629995871,9.843,2210.3,2209.2,0.0597]
[1750629996065,9.843,2210.3,2209.3,0.04525283]
[1750629996370,9.843,2210.3,2209.2,0.0597]
[1750629996886,9.843,2210.3,2209.0,1.4979]
[1750629997086,9.843,2210.3,2209.1,0.04526072]
[1750629997470,9.806,2210.2,2209.1,0.04526072]
[1750629997666,9.806,2210.2,2209.1,1.360627]
[1750629997872,9.806,2210.2,2209.1,1.40588458]
[1750629998272,9.806,2210.2,2209.1,1.360627]
[1750629998573,10.878,2210.5,2209.7,11.5272]
[1750629998769,10.879,2211.4,2210.0,10.0]
[1750629998973,9.788,2211.3,2210.1,0.04523563]
[1750629999270,1.4341,2211.6,2210.1,0.04523647]
[1750629999470,10.879,2211.5,2210.3,4.52414152]
[1750629999663,10.879,2211.5,2210.2,0.0597]
[1750629999664,9.778,2211.4,2210.4,1.51533111]
[1750629999863,9.778,2211.4,2210.5,0.04523034]
[1750630000065,9.778,2211.4,2210.4,1.4701]
[1750630000690,9.778,2211.4,2210.5,0.04523717]
[1750630000893,9.778,2211.4,2210.4,1.4701]
[1750630001301,10.07628547,2211.2,2209.9,1.4744]
[1750630001502,9.755,2211.1,2210.0,0.10494142]
[1750630001676,9.755,2211.1,2210.0,0.0597]
[1750630002634,9.755,2211.1,2210.0,0.10494101]
[1750630002775,11.56258547,2211.0,2209.5,0.0597]
[1750630002979,10.28,2210.9,2209.4,1.4198]
[1750630003474,10.28,2210.9,2209.5,0.04525679]
[1750630003707,10.28,2210.9,2209.4,1.4198]
[1750630004291,0.55,2210.9,2209.5,0.04526066]
[1750630004601,0.55,2210.9,2209.4,1.4198]
[1750630004602,9.718,2210.8,2209.4,1.4198]
[1750630005110,0.55,2210.7,2209.4,1.4198]
[1750630006003,0.55,2210.7,2209.5,0.41228663]
[1750630006198,0.41859614,2210.6,2209.4,1.4198]
[1750630006374,0.55,2210.4,2209.4,1.4198]
[1750630006711,11.29458528,2210.3,2209.0,1.5618]
[1750630006916,0.41958528,2210.2,2209.1,0.55]
[1750630007089,0.41958528,2210.2,2209.0,1.5618]
[1750630007090,10.09258528,2210.1,2209.0,1.5618]
[1750630007288,0.41958528,2210.0,2209.0,1.5021]
[1750630007548,0.41958528,2209.9,2209.0,1.20745339]
[1750630007691,0.41958528,2209.8,2209.0,0.17619605]
[1750630007905,10.07758528,2209.7,2209.0,0.17619605]
[1750630008213,0.41958528,2209.6,2209.0,0.17619605]
[1750630008418,0.42001384,2209.5,2209.0,0.23309605]
[1750630008616,0.42001384,2209.4,2209.0,0.23309605]
[1750630008789,9.653,2209.8,2209.0,0.17619605]
[1750630008790,0.4200243,2209.3,2209.0,0.17619605]
[1750630008989,0.4200243,2209.2,2209.0,0.23309605]
[1750630009190,0.42003941,2209.1,2209.0,0.17619605]
[1750630010214,0.42001217,2209.1,2209.0,0.17619605]
[1750630010807,0.41993831,2209.1,2208.6,11.438]
[1750630011024,0.41993831,2209.0,2208.6,11.3811]
[1750630011204,0.4200561,2208.9,2208.6,1.438]
[1750630011412,0.4200561,2208.8,2208.7,0.10217176]
[1750630011717,0.4200561,2208.8,2208.7,0.0569]
[1750630012217,0.005,2209.9,2209.1,0.0569]
[1750630012420,0.005,2209.9,2209.6,10.0569]
[1750630012585,0.005,2209.9,2209.2,1.6295493]
[1750630012586,0.005,2209.9,2209.2,11.5843]
[1750630013803,0.005,2209.9,2209.3,0.04525411]
[1750630014196,0.005,2209.9,2209.6,10.0]
[1750630014400,0.005,2209.9,2209.7,0.10214447]
[1750630014600,0.005,2209.9,2209.7,0.0569]
[1750630015523,0.005,2209.9,2209.3,0.0569]
[1750630015894,0.005,2209.9,2209.3,4.5830572]
[1750630016292,0.005,2209.9,2209.5,10.0569]
[1750630016630,0.005,2209.9,2209.6,0.0569]
[1750630017690,0.005,2209.9,2209.3,10.0]
[1750630017905,0.005,2209.9,2209.4,0.04524971]
[1750630018305,0.005,2209.9,2209.2,1.5843]
[1750630018892,0.005,2209.9,2208.7,4.58442813]
[1750630018893,9.5728,2209.8,2208.8,1.6581]
[1750630019091,0.0588,2209.8,2208.9,0.04526734]
[1750630019830,0.0588,2209.8,2208.9,0.04526162]
[1750630020122,0.005,2209.9,2208.9,0.04526162]
[1750630020327,0.005,2209.9,2208.8,1.6581]
[1750630020824,0.005,2209.9,2208.9,0.04526285]
[1750630021023,0.005,2209.9,2208.8,1.6581]
[1750630021221,0.005,2209.9,2208.9,0.04526284]
[1750630021424,0.005,2209.9,2209.0,10.0]
[1750630021600,0.005,2209.9,2209.1,0.04525607]
[1750630022122,0.005,2209.9,2209.3,10.07628547]
[1750630022430,0.005,2209.9,2209.6,1.5946]
[1750630022792,0.005,2209.9,2209.8,10.0]
[1750630023025,0.005,2209.9,2209.8,14.5821964]
[1750630023228,1.6327,2211.3,2210.3,0.0569]
[1750630023426,1.6589,2211.8,2210.7,10.0]
[1750630023747,8.88194497,2212.8,2211.5,10.0]
[1750630023748,1.7177,2212.8,2211.5,10.0]
[1750630023903,1.6589,2212.8,2212.0,10.0]
[1750630024104,0.42181509,2212.7,2212.1,0.04520018]
[1750630024307,1.7097,2213.3,2212.2,1.5736]
[1750630024308,0.41986484,2212.6,2212.2,1.5736]
[1750630024505,0.41986484,2212.5,2211.8,1.358686]
[1750630024803,0.41986484,2212.4,2211.3,1.5736]
[1750630025001,0.41986484,2212.3,2211.3,11.5736]
[1750630025203,0.41986484,2212.2,2211.8,10.0]
[1750630025502,0.0588,2213.3,2212.0,21.66718547]
[1750630025708,0.0588,2213.3,2212.1,10.0451958]
[1750630025709,0.41985436,2213.2,2212.1,10.0451958]
[1750630026039,0.41985436,2213.1,2212.0,11.5909]
[1750630026250,0.41985436,2213.0,2212.0,6.11155091]
[1750630026564,0.41966796,2212.9,2212.1,10.0]
[1750630026830,0.2691067,2216.5,2214.4,0.55]
[1750630026994,1.358508,2216.1,2216.0,14.51263537]
[1750630027195,0.2691067,2216.5,2216.0,14.51263537]
[1750630027196,0.2691067,2216.5,2216.4,14.51182097]
[1750630027444,0.2691067,2216.5,2216.4,26.45635459]
[1750630027594,0.0588,2217.8,2216.5,10.0]
[1750630027795,0.31479183,2217.7,2216.6,0.04509959]
[1750630028033,0.0588,2217.6,2216.4,0.55]
[1750630028200,0.0588,2217.3,2215.7,1.5137]
[1750630028390,1.6378,2217.4,2215.7,10.0]
[1750630028391,0.0588,2217.1,2215.7,10.0]
[1750630028592,1.5081,2216.9,2215.2,10.44529537]
[1750630028838,0.0588,2216.7,2215.2,10.44529537]
[1750630029046,20.94679183,2216.8,2215.2,10.44529537]
[1750630029047,0.0588,2216.5,2215.2,0.44529537]
[1750630029244,0.31479183,2216.4,2215.2,10.44529537]
[1750630029408,0.0588,2217.2,2215.6,1.6155]
[1750630029752,0.44855429,2218.9,2215.6,1.6155]
[1750630029753,1.5081,2218.6,2217.1,10.0]
[1750630030045,0.0588,2218.5,2217.2,0.04509088]
[1750630030239,0.0588,2218.5,2217.1,10.0]
[1750630030544,10.86980439,2219.0,2217.1,10.0]
[1750630030545,0.23421109,2219.1,2219.0,16.03343447]
[1750630030693,0.0588,2221.3,2219.7,14.5051133]
[1750630030898,10.07628547,2222.9,2220.6,10.0]
[1750630030899,1.8129067,2221.7,2220.6,10.0]
[1750630031122,0.2691067,2221.7,2221.0,10.0]
[1750630031329,0.2691067,2221.7,2221.1,0.04501639]
[1750630031658,0.0588,2221.4,2221.1,0.04501639]
[1750630031850,0.0588,2221.4,2220.1,10.0]
[1750630032141,0.2691067,2221.7,2220.3,10.0]
[1750630032341,0.0588,2221.3,2219.9,0.55]
[1750630032510,0.0588,2220.7,2218.6,1.78719386]
[1750630032706,0.0588,2220.7,2218.7,0.37624852]
[1750630032707,0.0588,2220.5,2218.7,0.37624852]
[1750630032907,0.0588,2220.3,2218.7,0.37624852]
[1750630033120,0.0588,2220.0,2218.7,0.37624852]
[1750630033605,0.0588,2220.0,2218.8,10.12134994]
[1750630033805,0.0588,2220.0,2218.9,10.37621461]
[1750630034034,0.0588,2220.0,2219.0,0.37619766]
[1750630035007,1.5128,2219.7,2219.0,0.33449766]
[1750630035210,9.8902,2219.6,2218.6,0.23559386]
[1750630035447,0.0602,2219.0,2218.6,0.23559386]
[1750630035650,10.85,2218.9,2218.6,0.23559386]
[1750630035855,0.0602,2221.4,2218.9,0.0315]
[1750630036022,0.0602,2221.4,2220.2,4.5040799]
[1750630036353,0.005,2221.5,2220.3,0.04503841]
[1750630036671,0.005,2221.5,2220.2,0.04501929]
[1750630036813,0.005,2221.5,2220.1,0.0315]
[1750630037014,0.005,2221.5,2220.2,0.04502098]
[1750630037215,0.005,2221.5,2220.1,10.0315]
[1750630037446,0.31446544,2221.4,2220.4,10.0]
[1750630037753,0.31446544,2221.4,2220.5,0.04501905]
[1750630037950,0.31446544,2221.4,2220.5,10.0]
[1750630038135,0.005,2221.5,2220.0,1.591]
[1750630038451,0.005,2221.5,2220.6,0.314465]
[1750630038650,0.005,2221.5,2220.0,1.591]
[1750630038651,0.0602,2221.4,2220.0,1.591]
[1750630038850,0.0602,2221.4,2220.1,11.39887983]
[1750630039170,0.005,2221.5,2220.1,11.353849]
[1750630039370,0.005,2221.5,2220.2,0.04501905]
[1750630039866,0.005,2221.5,2220.1,1.353849]
[1750630040035,0.0602,2221.4,2220.2,0.04502942]
[1750630040232,0.005,2221.5,2220.1,11.385349]
[1750630040433,0.7139,2221.4,2220.2,14.54904828]
[1750630040757,0.7741,2221.4,2220.1,11.353849]
[1750630040933,0.7741,2221.4,2220.2,4.54907635]
[1750630041255,0.7741,2221.4,2220.2,0.0450287]
[1750630041457,0.7741,2221.4,2220.2,0.0450215]
[1750630041758,0.7139,2221.4,2220.1,1.385349]
[1750630041972,0.7139,2221.4,2220.3,10.0]
[1750630042168,0.7139,2221.4,2220.1,11.353849]
[1750630042462,0.7139,2221.4,2220.8,10.0]
[1750630042622,0.7139,2221.4,2220.9,0.07650856]
[1750630042817,0.7139,2221.4,2221.1,10.0]
[1750630043017,0.7139,2221.4,2220.9,10.0315]
[1750630043218,0.7139,2221.4,2221.3,14.50186827]
[1750630043451,0.7139,2221.4,2221.2,10.0]
[1750630043628,0.7139,2221.4,2221.1,4.761]
[1750630043829,0.7139,2221.4,2221.0,10.0]
[1750630044022,0.7139,2221.4,2221.0,0.0315]
[1750630044221,0.7139,2221.4,2220.6,9.9285]
[1750630044521,0.7139,2221.4,2220.0,1.591]
[1750630045021,0.7139,2221.4,2220.1,6.15578252]
[1750630045219,0.7139,2221.4,2220.2,0.04502079]
[1750630045452,0.7139,2221.4,2220.1,15.74599805]
[1750630045453,0.7139,2221.4,2220.1,1.353849]
[1750630045656,0.7139,2221.4,2220.2,9.9155]
[1750630045954,0.7139,2221.4,2220.7,0.55]
[1750630046255,0.7139,2221.4,2220.5,10.0]
[1750630046419,0.7139,2221.4,2220.3,10.433]
[1750630046420,2.2179,2221.4,2220.6,0.0450157]
[1750630046620,2.2179,2221.4,2220.1,1.353849]
[1750630046821,0.0602,2220.9,2218.5,1.5144]
[1750630047053,0.0602,2220.6,2218.9,1.35438]
[1750630047220,0.55,2220.5,2219.0,0.04506148]
[1750630047416,1.5543,2220.3,2218.5,1.5144]
[1750630047656,0.0602,2219.8,2218.4,1.35471]
[1750630047857,0.0602,2219.5,2217.7,1.5144]
[1750630048024,10.828,2219.4,2217.8,0.37640121]
[1750630048224,10.828,2219.4,2217.9,4.50876763]
[1750630048420,10.828,2219.4,2218.0,0.42143748]
[1750630048618,10.828,2219.4,2218.1,0.3763503]
[1750630048842,10.828,2219.4,2218.2,0.04507182]
[1750630049062,10.828,2219.4,2218.1,0.3763503]
[1750630049271,10.828,2219.4,2218.2,10.0]
[1750630049423,10.828,2219.4,2218.3,0.0450749]
[1750630049819,10.828,2219.4,2218.4,0.3762994]
[1750630050087,1.5997,2219.3,2218.4,0.3762994]
[1750630050420,0.0602,2219.2,2218.4,0.3762994]
[1750630050826,0.0602,2219.2,2218.1,18.0]
[1750630050827,1.582,2218.7,2218.1,18.0]
[1750630051027,0.0602,2218.5,2217.0,4.51046606]
[1750630051257,1.582,2218.7,2217.1,0.04508958]
[1750630051468,1.582,2218.7,2217.5,4.50958286]
[1750630051667,1.582,2218.7,2217.4,0.0598]
[1750630051871,1.582,2218.7,2217.5,0.04508221]
[1750630052071,1.582,2218.7,2217.2,0.6]
[1750630052277,0.37391983,2218.6,2217.3,4.55490179]
[1750630052597,0.37391983,2218.6,2217.4,10.0]
[1750630052954,0.37391983,2218.6,2217.6,10.0]
[1750630053150,0.37391983,2218.6,2218.1,4.50830749]
[1750630053351,0.37391983,2218.6,2218.2,10.04507078]
[1750630053554,0.37391983,2218.6,2218.1,10.0]
[1750630053889,0.37391983,2218.6,2218.2,0.10487201]
[1750630054092,0.37391983,2218.6,2217.9,0.55]
[1750630054254,0.37391983,2218.6,2218.3,10.0]
[1750630054456,0.37391983,2218.6,2218.4,0.04506889]
[1750630054651,0.37391983,2218.6,2218.3,0.0450689]
[1750630054855,0.37391983,2218.6,2218.3,0.0598]
[1750630055091,0.37391983,2218.6,2218.5,10.0598]
[1750630055256,0.37391983,2218.6,2218.5,14.56735014]
[1750630055767,10.831,2220.0,2218.8,10.0]
[1750630055972,10.831,2220.0,2218.6,4.50730318]
[1750630056170,10.831,2220.0,2218.9,10.0]
[1750630056376,10.831,2220.0,2218.7,4.50700906]
[1750630056671,10.831,2220.0,2218.8,10.0]
[1750630056872,1.6294,2220.1,2218.9,10.02837393]
[1750630057078,1.6294,2220.1,2219.1,0.55]
[1750630057388,1.6294,2220.1,2219.2,4.50598181]
[1750630057627,1.6294,2220.1,2219.4,14.50559738]
[1750630057894,1.6294,2220.1,2219.2,11.354246]
[1750630058051,1.6294,2220.1,2219.6,10.0]
[1750630058256,1.6294,2220.1,2219.5,4.50549993]
[1750630058257,1.6219,2220.6,2219.5,10.0]
[1750630058455,1.6219,2220.6,2219.6,4.50524168]
[1750630058679,1.6219,2220.6,2219.6,0.0598]
[1750630059094,1.6821,2220.6,2219.2,1.414046]
[1750630059259,10.83,2220.7,2219.3,0.55]
[1750630059463,1.6163,2221.0,2220.2,10.0]
[1750630059697,1.6213,2221.5,2220.7,0.04511074]
[1750630060709,0.0602,2221.1,2220.7,0.04511074]
[1750630060915,1.8468174,2220.8,2220.7,0.04511074]
[1750630061260,0.2305174,2220.8,2220.7,0.04511074]
[1750630062373,0.2907174,2220.8,2220.7,0.04511074]
[1750630062795,0.0602,2220.7,2218.9,1.6283]
[1750630063009,0.2305174,2220.8,2218.1,9.709]
[1750630063010,1.6032,2220.3,2218.8,0.40604251]
[1750630063224,10.826,2220.2,2218.9,0.04506007]
[1750630063442,0.0602,2220.1,2218.9,0.04506007]
[1750630063953,1.6307,2220.0,2218.2,4.50809495]
[1750630064245,1.6307,2220.0,2218.8,4.50680269]
[1750630064418,1.6307,2220.0,2218.9,0.04505905]
[1750630064711,1.6307,2220.0,2219.2,10.0]
[1750630064927,1.6307,2220.0,2219.3,0.04505234]
[1750630065121,1.6307,2220.0,2219.5,4.50546884]
[1750630065412,10.826,2220.2,2219.5,10.0]
[1750630065781,1.5837,2221.2,2220.6,4.50314271]
[1750630065981,0.005,2221.5,2220.7,14.54811576]
[1750630066221,0.005,2221.5,2220.7,15.45827312]
[1750630066740,0.0568,2221.3,2220.7,10.0]
[1750630066893,1.5862,2221.1,2220.7,10.0]
[1750630067316,1.5862,2221.1,2220.1,4.50424159]
[1750630067519,1.5862,2221.1,2220.2,14.54897255]
[1750630067687,1.5862,2221.1,2220.6,10.0]
[1750630067886,0.0892375,2221.4,2221.3,14.50186827]
[1750630068112,0.005,2221.5,2221.3,14.50186827]
[1750630068113,0.005,2221.5,2221.4,10.0]
[1750630068318,0.005,2221.5,2221.2,10.0]
[1750630068506,0.005,2221.5,2221.2,4.5020241]
[1750630068714,0.005,2221.5,2221.4,10.0]
[1750630068889,0.005,2221.5,2221.0,10.0]
[1750630069088,0.005,2221.5,2221.2,14.50190947]
[1750630069426,0.005,2221.5,2221.4,24.48498049]
[1750630070159,0.005,2221.5,2221.4,25.03498049]
[1750630070437,0.005,2221.5,2221.4,10.0]
[1750630070787,0.005,2221.5,2221.4,15.05166561]
[1750630071235,0.005,2221.5,2221.4,16.68726561]
[1750630072891,0.005,2221.5,2221.2,1.352804]
[1750630073289,0.005,2221.5,2220.5,4.50346639]
[1750630073290,0.005,2221.5,2220.5,1.609]
[1750630073510,0.005,2221.5,2220.8,9.98331488]
[1750630073711,0.005,2221.5,2220.8,10.16376488]
[1750630074346,0.005,2221.5,2220.9,0.0450186]
[1750630074658,0.005,2221.5,2221.4,5.05166561]
[1750630074941,0.005,2221.7,2221.6,14.50126035]
[1750630075147,0.005,2221.7,2221.6,24.48457523]
[1750630075343,0.005,2221.7,2221.6,25.03457523]